[Event "Haarlemse Meesters 2019"]
[Site "Haarlem"]
[Date "2019.10.24"]
[Round "6.2"]
[White "Lopez, Jasel"]
[Black "Peelen, Piet"]
[Result "1-0"]
[ECO "D85"]
[WhiteElo "2409"]
[BlackElo "2348"]
[Annotator "NA"]
[PlyCount "155"]
[EventDate "2019.10.19"]
[EventType "tourn"]
[EventCountry "NED"]
[SourceTitle "playchess.com"]
[Source "ChessBase"]
[SourceQuality "1"]
[TimeControl "40/5400+30:1800+30"]

1. d4 {[%emt 0:00:00]} Nf6 {[%emt 0:00:16]} 2. c4 {[%emt 0:00:04]} g6 {[%emt 0:00:10]} 3. Nc3 {[%emt 0:00:31]} Bg7 {[%emt 0:00:06]} 4. Nf3 {[%emt 0:02:25]} d5 {[%emt 0:02:32]} 5. cxd5 {[%emt 0:00:29]} Nxd5 {[%emt 0:00:07]} 6. e4 {[%emt 0:00:06]} Nxc3 {[%emt 0:00:05]} 7. bxc3 {[%emt 0:00:05]} c5 {[%emt 0:00:19]} 8. Be3 {[%emt 0:00:07]} Qa5 {[%emt 0:23:39]} 9. Qd2 {[%emt 0:00:12]} Nc6 {[%emt 0:00:12]} 10. Rc1 {[%emt 0:00:19]} cxd4 {[%emt 0:04:18]} 11. cxd4 {[%emt 0:00:07]} Qxd2+ {[%emt 0:00:21]} 12. Kxd2 {[%emt 0:00:13]} O-O {[%emt 0:00:05]} 13. d5 {[%emt 0:00:56]} Rd8 {[%emt 0:00:56]} 14. Ke1 {[%emt 0:00:30]} Nb4 {[%emt 0:00:14]} 15. Bd2 {[%emt 0:05:47]} Na6 {[%emt 0:00:32]} 16. Bg5 {[%emt 0:07:11]} Kf8 $11 {[%emt 0:08:17]} 17. Bxa6 {[%emt 0:02:44]} bxa6 {[%emt 0:00:03]} 18. Ke2 {[%emt 0:00:14]} h6 {[%emt 0:08:10]} 19. Bf4 {[%emt 0:06:06]} f5 {[%emt 0:11:16]} 20. Bc7 {[%emt 0:00:45]} Rd7 {[%emt 0:01:38]} 21. exf5 {[%emt 0:18:20]} gxf5 {[%emt 0:01:21]} 22. Rhd1 {[%emt 0:02:26]} Bb7 {[%emt 0:00:52]} 23. Nh4 {[%emt 0:06:25]} Rxd5 {[%emt 0:11:19]} 24. Rxd5 {[%emt 0:02:55]} Bxd5 {[%emt 0:00:01]} 25. Nxf5 {[%emt 0:00:25]} Bxa2 {[%emt 0:11:52]} 26. Bf4 {[%emt 0:09:05]} h5 {[%emt 0:09:50]} 27. Rc5 {[%emt 0:06:37]} Bf6 {[%emt 0:00:41]} 28. Ne3 {[%emt 0:00:51]} Bf7 {[%emt 0:01:06]} 29. Ra5 {[%emt 0:01:06]} Be8 {[%emt 0:00:25]} 30. Bh6+ {[%emt 0:03:57]} Kf7 {[%emt 0:01:33]} 31. Rc5 {[%emt 0:05:58]} Bb5+ {[%emt 0:01:13]} 32. Kf3 {[%emt 0:00:46]} Kg6 {[%emt 0:00:11]} 33. Bf4 {[%emt 0:00:17]} Rd8 {[%emt 0:00:45]} 34. h3 {[%emt 0:02:16]} Rd2 {[%emt 0:02:01]} 35. g4 {[%emt 0:02:24]} hxg4+ {[%emt 0:00:16]} 36. hxg4 {[%emt 0:00:12]} Bh4 {[%emt 0:00:45]} 37. Nf5 {[%emt 0:02:49]} Rxf2+ {[%emt 0:00:16]} 38. Ke3 {[%emt 0:00:02]} Re2+ {[%emt 0:00:27]} 39. Kf3 {[%emt 0:00:04]} Rf2+ {[%emt 0:00:46]} 40. Ke3 {[%emt 0:00:03]} Re2+ {[%emt 0:00:27]} 41. Kf3 {[%emt 0:30:06]} Be1 {[%emt 0:09:54]} 42. Be3 {[%emt 0:00:00]} e6 {[%emt 0:13:49]} 43. Nd4 {[%emt 0:00:00]} Rb2 {[%emt 0:02:36]} 44. Nxe6 {[%emt 0:00:00]} Be2+ {[%emt 0:01:34]} 45. Ke4 {[%emt 0:00:00]} Bxg4 {[%emt 0:03:04]} 46. Nf4+ {[%emt 0:00:00]} Kf7 {[%emt 0:02:03]} 47. Nd3 {[%emt 0:00:00]} Rb5 {[%emt 0:00:32]} 48. Rc7+ {[%emt 0:00:00]} Ke6 {[%emt 0:00:14]} 49. Nxe1 {[%emt 0:00:00]} Bf5+ {[%emt 0:00:49]} 50. Kf3 {[%emt 0:00:00]} Rb4 {[%emt 0:00:11]} 51. Rc6+ {[%emt 0:00:00]} Kd5 {[%emt 0:00:01]} 52. Rxa6 {[%emt 0:00:00]} Be4+ {[%emt 0:00:18]} 53. Ke2 {[%emt 0:00:00]} Rb2+ {[%emt 0:00:48]} 54. Bd2 {[%emt 0:00:00]} Rb3 {[%emt 0:00:53]} 55. Rxa7 {[%emt 0:00:00]} Rh3 {[%emt 0:00:49]} 56. Bf4 {[%emt 0:00:00]} Rb3 {[%emt 0:00:29]} 57. Ra5+ {[%emt 0:00:00]} Kc4 {[%emt 0:00:29]} 58. Be5 {[%emt 0:00:00]} Rb5 {[%emt 0:00:02]} 59. Ra4+ {[%emt 0:00:00]} Rb4 {[%emt 0:00:02]} 60. Ra6 {[%emt 0:00:00]} Kd5 {[%emt 0:00:48]} 61. Bc3 {[%emt 0:00:00]} Rb3 {[%emt 0:00:32]} 62. Kd2 {[%emt 0:00:00]} Kc5 {[%emt 0:01:08]} 63. Ra4 {[%emt 0:00:00]} Bc6 {[%emt 0:00:30]} 64. Nd3+ {[%emt 0:00:00]} Kd6 {[%emt 0:00:21]} 65. Rd4+ {[%emt 0:00:00]} Kc7 {[%emt 0:00:31]} 66. Ba5+ {[%emt 0:00:18]} Kb8 {[%emt 0:00:26]} 67. Bb4 {[%emt 0:00:27]} Bb5 {[%emt 0:00:20]} 68. Nc5 {[%emt 0:00:36]} Rh3 {[%emt 0:00:27]} 69. Rd6 {[%emt 0:00:05]} Kc8 {[%emt 0:00:52]} 70. Ba5 {[%emt 0:00:11]} Rh8 {[%emt 0:00:32]} 71. Bb6 {[%emt 0:00:05]} Bc4 {[%emt 0:00:30]} 72. Kc3 {[%emt 0:00:03]} Be2 {[%emt 0:00:26]} 73. Rd7 {[%emt 0:00:40]} Bb5 {[%emt 0:00:34]} 74. Rd6 {[%emt 0:00:19]} Kb8 {[%emt 0:00:21]} 75. Kb4 {[%emt 0:00:17]} Be2 {[%emt 0:00:12]} 76. Rd7 {[%emt 0:00:20]} Re8 {[%emt 0:00:55]} 77. Rc7 {[%emt 0:00:13]} Bf3 {[%emt 0:00:34]} 78. Na6+ {[%emt 0:00:07]} 1-0

[Event "Haarlemse Meesters 2019"]
[Site "Haarlem"]
[Date "2019.10.24"]
[Round "6.3"]
[White "De Ruiter, Danny"]
[Black "Gijswijt, Bart"]
[Result "1/2-1/2"]
[ECO "E04"]
[WhiteElo "2268"]
[BlackElo "2387"]
[Annotator "NA RC"]
[PlyCount "57"]
[EventDate "2019.10.19"]
[EventType "tourn"]
[EventCountry "NED"]
[SourceTitle "playchess.com"]
[Source "ChessBase"]
[SourceQuality "1"]
[TimeControl "40/5400+30:1800+30"]

1. d4 {[%emt 0:00:00]} Nf6 {[%emt 0:00:00]} 2. c4 {[%emt 0:00:00]} e6 {[%emt 0:00:00]} 3. Nf3 {[%emt 0:00:07]} Bb4+ {[%emt 0:00:26]} 4. Bd2 {[%emt 0:00:42]} a5 {[%emt 0:00:18]} 5. g3 {[%emt 0:00:58]} O-O {[%emt 0:00:42]} 6. Bg2 {[%emt 0:01:24]} d5 {[%emt 0:00:22]} 7. O-O {[%emt 0:02:54]} dxc4 {[%emt 0:01:25]} 8. Bxb4 {[%emt 0:04:14]} axb4 {[%emt 0:00:09]} 9. Ne5 $1 {[%emt 0:01:37] [#]} Nc6 $1 {[%emt 0:05:49]} 10. Nxc6 {[%emt 0:05:02]} bxc6 {[%emt 0:00:38]} 11. e3 {[%emt 0:02:24]} Nd5 {[%emt 0:07:07]} 12. Qc1 {[%emt 0:07:46]} Ba6 {[%emt 0:04:51]} 13. Rd1 $11 {[%emt 0:00:15]} Bb5 {[%emt 0:18:35]} 14. Bf1 {[%emt 0:05:46]} Nb6 {[%emt 0:03:26]} 15. Nd2 {[%emt 0:02:07]} Qd5 {[%emt 0:01:58]} 16. Bg2 {[%emt 0:01:52]} Qd6 {[%emt 0:03:07]} 17. Bf1 {[%emt 0:02:10]} Qd5 {[%emt 0:01:48]} 18. Bg2 {[%emt 0:00:17]} Qd6 {[%emt 0:00:12]} 19. Bf1 {[%emt 0:00:23]} c3 {[%emt 0:04:16]} 20. bxc3 {[%emt 0:00:52]} Bxf1 {[%emt 0:00:18]} 21. Rxf1 {[%emt 0:05:03]} bxc3 {[%emt 0:00:35]} 22. Qxc3 {[%emt 0:01:41]} Ra3 {[%emt 0:01:42]} 23. Qc2 {[%emt 0:02:07]} Rfa8 {[%emt 0:03:28]} 24. Rfc1 {[%emt 0:04:42]} h6 {[%emt 0:02:27]} 25. Qxc6 {[%emt 0:04:50]} Qxc6 {[%emt 0:02:26]} 26. Rxc6 {[%emt 0:01:31]} Rxa2 {[%emt 0:00:09]} 27. Rxa2 {[%emt 0:00:33]} Rxa2 {[%emt 0:00:09]} 28. Ne4 {[%emt 0:04:29]} Ra7 {[%emt 0:01:24]} 29. Rc2 {[%emt 0:04:19]} 1/2-1/2

[Event "Haarlemse Meesters 2019"]
[Site "Haarlem"]
[Date "2019.10.24"]
[Round "6.5"]
[White "Lahaye, Rick"]
[Black "Tondivar, Babak"]
[Result "1/2-1/2"]
[ECO "A03"]
[WhiteElo "2414"]
[BlackElo "2324"]
[Annotator "NA"]
[PlyCount "69"]
[EventDate "2019.10.19"]
[EventType "tourn"]
[EventCountry "NED"]
[SourceTitle "playchess.com"]
[Source "ChessBase"]
[SourceQuality "1"]
[TimeControl "40/5400+30:1800+30"]

1. f4 {[%emt 0:00:00]} d5 {[%emt 0:00:00]} 2. Nf3 {[%emt 0:00:00]} g6 {[%emt 0:00:30]} 3. g3 {[%emt 0:00:00]} Bg7 {[%emt 0:00:13]} 4. Bg2 {[%emt 0:00:00]} Nh6 {[%emt 0:00:44]} 5. O-O {[%emt 0:00:52]} Nf5 {[%emt 0:03:25]} 6. c3 {[%emt 0:00:58]} c5 {[%emt 0:05:18]} 7. Qe1 {[%emt 0:04:26]} Nc6 {[%emt 0:01:24]} 8. e3 {[%emt 0:01:55]} O-O {[%emt 0:06:43]} 9. d3 {[%emt 0:01:37]} e5 {[%emt 0:02:09]} 10. fxe5 {[%emt 0:09:38]} Nxe5 {[%emt 0:00:32]} 11. Nxe5 {[%emt 0:00:54]} Bxe5 {[%emt 0:00:02]} 12. d4 {[%emt 0:00:05]} cxd4 {[%emt 0:13:42]} 13. cxd4 {[%emt 0:01:06]} Bg7 {[%emt 0:00:42]} 14. Nc3 {[%emt 0:00:05]} Be6 {[%emt 0:01:42]} 15. Qd1 $15 {[%emt 0:00:25]} Qd7 {[%emt 0:03:25]} 16. Qb3 {[%emt 0:00:23]} Rad8 {[%emt 0:01:53]} 17. Bd2 {[%emt 0:07:36]} Bh6 {[%emt 0:07:03]} 18. Ne2 {[%emt 0:00:51]} Rfe8 {[%emt 0:02:32]} 19. Rae1 {[%emt 0:15:11]} Nd6 {[%emt 0:05:34]} 20. Bxd5 {[%emt 0:10:18]} Bxd5 {[%emt 0:00:27]} 21. Qxd5 {[%emt 0:00:05]} Bxe3+ {[%emt 0:00:59]} 22. Bxe3 {[%emt 0:00:27]} Rxe3 {[%emt 0:00:01]} 23. Nc3 {[%emt 0:00:22]} Nf5 {[%emt 0:12:32]} 24. Rxe3 {[%emt 0:04:52]} Nxe3 {[%emt 0:00:14]} 25. Qxd7 {[%emt 0:00:11]} Rxd7 {[%emt 0:00:02]} 26. Re1 {[%emt 0:00:15]} Nc2 {[%emt 0:05:20]} 27. Re8+ {[%emt 0:05:32]} Kg7 {[%emt 0:00:03]} 28. d5 {[%emt 0:00:55]} Nb4 {[%emt 0:00:36]} 29. Ra8 {[%emt 0:02:36]} Nxd5 {[%emt 0:02:24]} 30. Rxa7 {[%emt 0:00:06]} Nxc3 {[%emt 0:00:10]} 31. bxc3 {[%emt 0:00:04]} Rd2 {[%emt 0:00:38]} 32. Ra3 {[%emt 0:03:28]} h5 {[%emt 0:00:36]} 33. h3 {[%emt 0:00:20]} g5 {[%emt 0:00:34]} 34. Kf1 {[%emt 0:00:40]} Kg6 {[%emt 0:00:44]} 35. Kg1 {[%emt 0:06:00]} 1/2-1/2

[Event "Haarlemse Meesters 2019"]
[Site "Haarlem"]
[Date "2019.10.25"]
[Round "7.2"]
[White "Tondivar, Babak"]
[Black "Lopez, Jasel"]
[Result "0-1"]
[ECO "A29"]
[WhiteElo "2324"]
[BlackElo "2409"]
[Annotator "NA"]
[PlyCount "74"]
[EventDate "2019.10.19"]
[EventType "tourn"]
[EventCountry "NED"]
[SourceTitle "playchess.com"]
[Source "ChessBase"]
[SourceQuality "1"]
[TimeControl "40/5400+30:1800+30"]

1. g3 {[%emt 0:00:00]} e5 {[%emt 0:00:01]} 2. Bg2 {[%emt 0:00:00]} Nf6 {[%emt 0:00:21]} 3. d3 {[%emt 0:00:38]} d5 {[%emt 0:00:30]} 4. Nf3 {[%emt 0:00:12]} Nc6 {[%emt 0:00:17]} 5. O-O {[%emt 0:00:17]} Be7 {[%emt 0:00:56]} 6. c4 {[%emt 0:00:21]} O-O {[%emt 0:00:20]} 7. cxd5 $11 {[%emt 0:01:09]} Nxd5 {[%emt 0:00:09]} 8. Nc3 {[%emt 0:00:20]} Nb6 {[%emt 0:04:11]} 9. Be3 {[%emt 0:09:25]} f5 {[%emt 0:04:25]} 10. Rc1 {[%emt 0:03:05]} Be6 {[%emt 0:04:00]} 11. a3 {[%emt 0:02:20]} f4 {[%emt 0:16:40]} 12. Bxb6 {[%emt 0:14:46]} axb6 {[%emt 0:01:13]} 13. Nd2 {[%emt 0:12:04]} Qd7 {[%emt 0:04:04]} 14. Nc4 {[%emt 0:12:08]} Bh3 {[%emt 0:01:53]} 15. Ne4 {[%emt 0:00:31]} Rf7 {[%emt 0:09:47]} 16. Re1 {[%emt 0:05:02]} Raf8 {[%emt 0:02:51]} 17. b4 {[%emt 0:01:51]} b5 {[%emt 0:08:46]} 18. Ncd2 {[%emt 0:00:47]} Nd4 {[%emt 0:02:52]} 19. Nf3 {[%emt 0:03:41]} Bxg2 {[%emt 0:02:40]} 20. Kxg2 {[%emt 0:00:16]} Nxf3 {[%emt 0:01:31]} 21. exf3 {[%emt 0:00:02]} fxg3 {[%emt 0:00:44]} 22. hxg3 {[%emt 0:00:25]} Rxf3 {[%emt 0:00:26]} 23. Qxf3 {[%emt 0:00:55]} Rxf3 {[%emt 0:00:08]} 24. Kxf3 {[%emt 0:00:03]} Qxd3+ {[%emt 0:00:20]} 25. Re3 {[%emt 0:03:05]} Qd7 {[%emt 0:00:11]} 26. Rcc3 {[%emt 0:02:59]} h5 {[%emt 0:05:36]} 27. Rcd3 {[%emt 0:03:07]} Qf5+ {[%emt 0:05:05]} 28. Kg2 {[%emt 0:00:29]} g5 {[%emt 0:00:21]} 29. Rd5 {[%emt 0:10:59]} h4 {[%emt 0:06:48]} 30. gxh4 {[%emt 0:01:39]} gxh4 {[%emt 0:00:05]} 31. Rxb5 {[%emt 0:01:04]} Bf8 {[%emt 0:01:35]} 32. f3 {[%emt 0:09:44]} Bh6 {[%emt 0:01:00]} 33. Re1 {[%emt 0:00:19]} h3+ {[%emt 0:03:02]} 34. Kf2 {[%emt 0:00:08]} Qf4 {[%emt 0:00:10]} 35. Rg1+ {[%emt 0:02:00]} Kf7 {[%emt 0:00:11]} 36. Rg3 {[%emt 0:01:06]} Qe3+ {[%emt 0:00:19]} 37. Kf1 {[%emt 0:00:06]} Qd3+ {[%emt 0:01:58]} 0-1

[Event "Haarlemse Meesters 2019"]
[Site "Haarlem"]
[Date "2019.10.25"]
[Round "7.3"]
[White "Peelen, Piet"]
[Black "Moucheroud, Jeremy"]
[Result "0-1"]
[ECO "D35"]
[WhiteElo "2348"]
[BlackElo "2294"]
[Annotator "NA"]
[PlyCount "102"]
[EventDate "2019.10.19"]
[EventType "tourn"]
[EventCountry "NED"]
[SourceTitle "playchess.com"]
[Source "ChessBase"]
[SourceQuality "1"]
[TimeControl "40/5400+30:1800+30"]

1. d4 {[%emt 0:00:00]} d5 {[%emt 0:01:17]} 2. c4 {[%emt 0:00:00]} e6 {[%emt 0:00:01]} 3. Nc3 {[%emt 0:00:00]} Nf6 {[%emt 0:00:04]} 4. cxd5 {[%emt 0:00:00]} exd5 {[%emt 0:00:01]} 5. Bg5 {[%emt 0:00:00]} c6 {[%emt 0:00:03]} 6. e3 {[%emt 0:00:05]} Be7 {[%emt 0:00:12]} 7. Bd3 {[%emt 0:00:09]} Nbd7 {[%emt 0:00:03]} 8. Nge2 {[%emt 0:00:24]} h6 {[%emt 0:00:14]} 9. Bh4 {[%emt 1:33:52]} Nh5 {[%emt 0:00:07]} 10. Bxe7 {[%emt 0:00:00]} Qxe7 {[%emt 0:00:02]} 11. Qd2 {[%emt 0:00:00]} Nb6 {[%emt 0:00:40]} 12. O-O {[%emt 0:00:00]} O-O {[%emt 0:00:02]} 13. Rae1 {[%emt 0:00:00]} Bd7 {[%emt 0:23:51]} 14. f3 {[%emt 0:00:00]} Qg5 {[%emt 0:07:02]} 15. Nc1 {[%emt 0:00:00]} Rae8 {[%emt 0:03:48]} 16. Qf2 {[%emt 0:00:00]} f5 {[%emt 0:04:46]} 17. f4 {[%emt 0:00:00]} Qe7 {[%emt 0:13:28]} 18. Qc2 {[%emt 0:00:00]} Nc8 {[%emt 0:14:28]} 19. g4 {[%emt 0:00:00]} Nf6 {[%emt 0:02:05]} 20. Bxf5 {[%emt 0:00:00]} Nxg4 {[%emt 0:01:26]} 21. Bg6 {[%emt 0:00:00]} Rd8 {[%emt 0:01:28]} 22. e4 {[%emt 0:00:00]} dxe4 {[%emt 0:10:31]} 23. Nxe4 {[%emt 0:00:00]} Qh4 {[%emt 0:07:55]} 24. Qb3+ {[%emt 0:00:00]} Kh8 {[%emt 0:00:15]} 25. Qg3 {[%emt 0:00:00]} Qxg3+ {[%emt 0:00:57]} 26. Nxg3 {[%emt 0:00:00]} Be8 {[%emt 0:03:26]} 27. f5 {[%emt 0:01:23]} Nf6 {[%emt 0:01:02]} 28. Nb3 {[%emt 0:02:02]} Bxg6 {[%emt 0:02:23]} 29. fxg6 {[%emt 0:00:01]} Rfe8 {[%emt 0:00:21]} 30. Nf5 {[%emt 0:03:38]} Re4 {[%emt 0:01:07]} 31. Rxe4 {[%emt 0:02:28]} Nxe4 {[%emt 0:02:25]} 32. Nc5 {[%emt 0:00:26]} Nxc5 {[%emt 0:00:00]} 33. dxc5 {[%emt 0:02:02]} Kg8 {[%emt 0:00:00]} 34. Re1 {[%emt 0:00:00]} Kf8 {[%emt 0:00:00]} 35. Rf1 {[%emt 0:00:15]} Kg8 {[%emt 0:00:00]} 36. b4 {[%emt 0:00:21]} Rf8 {[%emt 0:01:18]} 37. h4 {[%emt 0:00:48]} h5 {[%emt 0:00:15]} 38. Nd6 {[%emt 0:00:33]} Nxd6 {[%emt 0:00:41]} 39. cxd6 {[%emt 0:00:04]} Rxf1+ {[%emt 0:00:29]} 40. Kxf1 {[%emt 0:00:01]} Kf8 {[%emt 0:00:01]} 41. Ke2 {[%emt 0:03:29]} Ke8 {[%emt 0:00:05]} 42. Ke3 {[%emt 0:01:07]} Kd7 {[%emt 0:00:03]} 43. Kf4 {[%emt 0:00:53]} Kxd6 {[%emt 0:00:12]} 44. a4 {[%emt 0:00:24]} b6 {[%emt 0:12:08]} 45. Kg5 {[%emt 0:01:06]} Ke5 {[%emt 0:01:01]} 46. Kxh5 {[%emt 0:01:21]} Kf6 {[%emt 0:04:40]} 47. a5 {[%emt 0:01:41]} bxa5 {[%emt 0:02:44]} 48. bxa5 {[%emt 0:00:09]} c5 {[%emt 0:00:43]} 49. Kg4 {[%emt 0:00:27]} Kxg6 {[%emt 0:00:28]} 50. a6 {[%emt 0:01:28]} c4 {[%emt 0:00:59]} 51. Kf4 {[%emt 0:00:16]} Kh5 {[%emt 0:00:01]} 0-1

[Event "Haarlemse Meesters 2019"]
[Site "Haarlem"]
[Date "2019.10.25"]
[Round "7.4"]
[White "Welling, Gerard"]
[Black "De Ruiter, Danny"]
[Result "1/2-1/2"]
[ECO "E14"]
[WhiteElo "2302"]
[BlackElo "2268"]
[Annotator "NA"]
[PlyCount "51"]
[EventDate "2019.10.19"]
[EventType "tourn"]
[EventCountry "NED"]
[SourceTitle "playchess.com"]
[Source "ChessBase"]
[SourceQuality "1"]
[TimeControl "40/5400+30:1800+30"]

1. b3 {[%emt 0:00:00]} b6 {[%emt 0:00:00]} 2. Bb2 {[%emt 0:00:00]} Bb7 {[%emt 0:00:01]} 3. e3 {[%emt 0:00:00]} Nf6 {[%emt 0:00:18]} 4. Nf3 {[%emt 0:00:19]} e6 {[%emt 0:00:20]} 5. c4 {[%emt 0:00:06]} Be7 {[%emt 0:00:23]} 6. Be2 {[%emt 0:00:07]} O-O {[%emt 0:00:09]} 7. O-O {[%emt 0:00:05]} c5 {[%emt 0:02:01]} 8. d4 {[%emt 0:05:14]} d5 {[%emt 0:07:55]} 9. cxd5 {[%emt 0:00:55]} Nxd5 {[%emt 0:00:48]} 10. Nc3 {[%emt 0:00:50]} Nd7 {[%emt 0:03:59]} 11. Rc1 {[%emt 0:06:44]} Rc8 {[%emt 0:05:34]} 12. Nxd5 {[%emt 0:01:19]} Bxd5 {[%emt 0:00:45]} 13. dxc5 {[%emt 0:31:59]} Nxc5 {[%emt 0:09:00]} 14. b4 {[%emt 0:02:32]} Ne4 {[%emt 0:00:46]} 15. a3 {[%emt 0:01:26]} Bf6 {[%emt 0:07:00]} 16. Rxc8 {[%emt 0:07:30]} Qxc8 {[%emt 0:00:37]} 17. Bxf6 {[%emt 0:00:06]} Nxf6 {[%emt 0:00:25]} 18. Qc1 {[%emt 0:00:43]} Qb7 {[%emt 0:00:31]} 19. Qb2 {[%emt 0:00:23]} Rc8 {[%emt 0:03:28]} 20. Rc1 {[%emt 0:00:20]} Rc7 {[%emt 0:00:47]} 21. Rxc7 {[%emt 0:04:03]} Qxc7 {[%emt 0:00:17]} 22. Nd2 {[%emt 0:00:03]} h6 {[%emt 0:03:02]} 23. h3 {[%emt 0:00:07]} Ne4 {[%emt 0:03:03]} 24. Nxe4 {[%emt 0:00:26]} Bxe4 {[%emt 0:00:06]} 25. Qd2 {[%emt 0:01:21]} Kh7 {[%emt 0:04:19]} 26. Bd3 {[%emt 0:02:16]} 1/2-1/2

[Event "Haarlemse Meesters 2019"]
[Site "Haarlem"]
[Date "2019.10.25"]
[Round "7.5"]
[White "De Strycker, Nathan"]
[Black "Hainke, Guntram"]
[Result "1-0"]
[ECO "A11"]
[WhiteElo "2302"]
[BlackElo "2365"]
[Annotator "NA"]
[PlyCount "75"]
[EventDate "2019.10.19"]
[EventType "tourn"]
[EventCountry "NED"]
[SourceTitle "playchess.com"]
[Source "ChessBase"]
[SourceQuality "1"]
[TimeControl "40/5400+30:1800+30"]

1. c4 {[%emt 0:00:00]} c6 {[%emt 0:00:17]} 2. g3 {[%emt 0:00:00]} d5 {[%emt 0:00:18]} 3. Nf3 {[%emt 0:00:03]} Nf6 {[%emt 0:01:23]} 4. Bg2 {[%emt 0:02:07]} Bg4 {[%emt 0:01:39]} 5. cxd5 {[%emt 0:06:13]} Bxf3 {[%emt 0:00:26]} 6. Bxf3 {[%emt 0:00:08]} cxd5 {[%emt 0:00:20]} 7. Nc3 {[%emt 0:01:55]} e6 $11 {[%emt 0:01:15]} 8. d3 {[%emt 0:02:09]} Nc6 {[%emt 0:03:07]} 9. O-O {[%emt 0:00:06]} Be7 {[%emt 0:05:23]} 10. a3 {[%emt 0:01:50]} Rc8 {[%emt 0:03:36]} 11. Bd2 {[%emt 0:04:21]} O-O {[%emt 0:03:03]} 12. b4 {[%emt 0:04:45]} Qd7 {[%emt 0:17:12]} 13. Bg2 {[%emt 0:04:54]} Rfd8 {[%emt 0:14:12]} 14. Ra2 {[%emt 0:01:35]} d4 {[%emt 0:04:58]} 15. Ne4 {[%emt 0:02:52]} Nd5 {[%emt 0:00:25]} 16. Qb3 {[%emt 0:09:47]} h6 {[%emt 0:04:28]} 17. Nc5 {[%emt 0:13:02]} Qc7 {[%emt 0:00:52]} 18. Rc1 {[%emt 0:06:27]} b6 {[%emt 0:04:54]} 19. Na6 {[%emt 0:03:27]} Qb7 {[%emt 0:02:24]} 20. Bxd5 {[%emt 0:00:02]} Rxd5 {[%emt 0:04:04]} 21. b5 {[%emt 0:01:18]} Ne5 {[%emt 0:06:22]} 22. Rxc8+ {[%emt 0:00:12]} Qxc8 {[%emt 0:00:06]} 23. Rc2 {[%emt 0:00:36]} Qd8 {[%emt 0:00:42]} 24. a4 {[%emt 0:07:50]} h5 {[%emt 0:06:04]} 25. Bf4 {[%emt 0:03:26]} g5 {[%emt 0:04:42]} 26. Bd2 {[%emt 0:09:46]} h4 {[%emt 0:01:47]} 27. Qb1 {[%emt 0:04:45]} Nd7 {[%emt 0:03:55]} 28. Qc1 {[%emt 0:01:14]} Nc5 {[%emt 0:01:05]} 29. Nxc5 {[%emt 0:01:39]} Bxc5 {[%emt 0:02:58]} 30. Bb4 {[%emt 0:00:14]} Qd6 {[%emt 0:00:43]} 31. Bxc5 {[%emt 0:00:10]} bxc5 {[%emt 0:00:44]} 32. a5 {[%emt 0:00:59]} Re5 {[%emt 0:00:35]} 33. Rb2 {[%emt 0:01:22]} hxg3 {[%emt 0:01:23]} 34. hxg3 {[%emt 0:00:05]} c4 {[%emt 0:00:50]} 35. dxc4 {[%emt 0:04:54]} Qa3 {[%emt 0:00:38]} 36. b6 {[%emt 0:00:47]} axb6 {[%emt 0:00:03]} 37. axb6 {[%emt 0:00:05]} d3 {[%emt 0:01:00]} 38. b7 {[%emt 0:00:37]} 1-0

[Event "Haarlemse Meesters 2019"]
[Site "Haarlem"]
[Date "2019.10.26"]
[Round "8.1"]
[White "De Ruiter, Danny"]
[Black "De Strycker, Nathan"]
[Result "1-0"]
[ECO "D20"]
[WhiteElo "2268"]
[BlackElo "2302"]
[Annotator "NA"]
[PlyCount "83"]
[EventDate "2019.10.19"]
[EventType "tourn"]
[EventCountry "NED"]
[SourceTitle "playchess.com"]
[Source "ChessBase"]
[SourceQuality "1"]
[TimeControl "40/5400+30:1800+30"]

1. d4 {[%emt 0:00:00]} d5 {[%emt 0:00:00]} 2. c4 {[%emt 0:00:00]} dxc4 {[%emt 0:00:00]} 3. e4 {[%emt 0:01:39]} e5 {[%emt 0:00:08]} 4. Nf3 {[%emt 0:00:38]} exd4 {[%emt 0:00:04]} 5. Bxc4 {[%emt 0:00:51]} Nc6 {[%emt 0:00:06]} 6. O-O {[%emt 0:00:45]} Be6 {[%emt 0:00:14]} 7. Bb5 {[%emt 0:00:19]} Bc5 {[%emt 0:00:13]} 8. b4 {[%emt 0:00:23]} Bb6 {[%emt 0:00:03]} 9. a4 {[%emt 0:00:18]} a6 {[%emt 0:00:27]} 10. Bxc6+ {[%emt 0:00:12]} bxc6 {[%emt 0:00:04]} 11. a5 {[%emt 0:02:03]} Ba7 {[%emt 0:00:04]} 12. Bb2 {[%emt 0:00:04]} Nf6 {[%emt 0:00:07]} 13. Nbd2 $11 {[%emt 0:04:11]} O-O {[%emt 0:08:34]} 14. Qc2 {[%emt 0:03:56]} Re8 {[%emt 0:17:02]} 15. Rac1 {[%emt 0:06:47]} Qb8 {[%emt 0:14:54]} 16. Ba3 {[%emt 0:22:09]} Bd7 {[%emt 0:05:56]} 17. Rfe1 {[%emt 0:02:06]} Qb5 {[%emt 0:02:15]} 18. Qc4 {[%emt 0:05:44]} Ng4 {[%emt 0:14:25]} 19. Qxb5 {[%emt 0:03:06]} axb5 {[%emt 0:01:10]} 20. Bb2 {[%emt 0:03:54]} c5 {[%emt 0:13:07]} 21. bxc5 {[%emt 0:00:23]} Bb8 {[%emt 0:01:39]} 22. c6 {[%emt 0:04:03]} Be6 {[%emt 0:02:33]} 23. Ra1 {[%emt 0:00:37]} Ba7 {[%emt 0:01:37]} 24. h3 {[%emt 0:02:48]} Nf6 {[%emt 0:00:24]} 25. Bxd4 {[%emt 0:01:07]} Red8 {[%emt 0:02:17]} 26. Bxa7 {[%emt 0:01:45]} Rxa7 {[%emt 0:00:01]} 27. Reb1 {[%emt 0:00:10]} Rb8 {[%emt 0:02:22]} 28. Rb4 {[%emt 0:02:45]} Ra6 {[%emt 0:03:13]} 29. Nd4 {[%emt 0:00:31]} Ne8 {[%emt 0:01:55]} 30. Rxb5 {[%emt 0:03:04]} Rba8 {[%emt 0:00:22]} 31. e5 {[%emt 0:01:33]} Kf8 {[%emt 0:00:21]} 32. Ne4 {[%emt 0:02:41]} Bc4 {[%emt 0:00:01]} 33. Rc5 {[%emt 0:00:30]} Bd3 {[%emt 0:00:17]} 34. Nc3 {[%emt 0:00:24]} Rd8 {[%emt 0:00:29]} 35. Nd5 {[%emt 0:05:13]} Raa8 {[%emt 0:00:58]} 36. Nb5 {[%emt 0:02:22]} Bxb5 {[%emt 0:01:09]} 37. Rxb5 {[%emt 0:00:02]} Ra6 {[%emt 0:00:05]} 38. Nb4 {[%emt 0:02:50]} Raa8 {[%emt 0:00:01]} 39. a6 {[%emt 0:00:33]} f6 {[%emt 0:00:00]} 40. exf6 {[%emt 0:00:55]} gxf6 {[%emt 0:00:06]} 41. a7 {[%emt 0:32:46]} Nd6 {[%emt 0:30:41]} 42. Rb7 {[%emt 0:00:57]} 1-0